[Event "January 2 Early 2024"]
[Site "https://www.chess.com"]
[Date "2024.01.02"]
[Round "1"]
[White "Chirivi C, Jenny Astrid"]
[Black "Mendes Aaron Reeve"]
[Result "0-1"]
[Board "230"]
[TimeControl "180+1"]
[WhiteFideId "4403061"]
[BlackFideId "25954938"]
[WhiteElo "2254"]
[BlackElo "2617"]
[WhiteTeam "COL"]
[BlackTeam "CAN"]
[WhiteClock "0:00:00"]
[BlackClock "0:00:36"]

1. d4 {[%clk 0:03:00]}  Nf6 {[%clk 0:02:56]} 2. c4 {[%clk 0:02:59]}  g6 {[%clk 0:02:53]} 3. Nc3 {[%clk 0:02:59]}  d5 {[%clk 0:02:52]} 4. Nf3 {[%clk 0:02:58]}  Bg7 {[%clk 0:02:50]} 5. Qb3 {[%clk 0:02:57]}  dxc4 {[%clk 0:02:49]} 6. Qxc4 {[%clk 0:02:57]}  O-O {[%clk 0:02:46]} 7. e4 {[%clk 0:02:57]}  Nc6 {[%clk 0:02:46]} 8. d5 {[%clk 0:02:35]}  Na5 {[%clk 0:02:45]} 9. Qb4 {[%clk 0:02:25]}  c6 {[%clk 0:02:44]} 10. dxc6 {[%clk 0:02:09]}  Nxc6 {[%clk 0:02:43]} 11. Qa4 {[%clk 0:02:03]}  Nd7 {[%clk 0:02:40]} 12. Be2 {[%clk 0:01:58]}  Nc5 {[%clk 0:02:40]} 13. Qc2 {[%clk 0:01:58]}  Nb4 {[%clk 0:02:38]} 14. Qd1 {[%clk 0:01:53]}  Ncd3+ {[%clk 0:02:36]} 15. Bxd3 {[%clk 0:01:53]}  Nxd3+ {[%clk 0:02:37]} 16. Ke2 {[%clk 0:01:52]}  Nxc1+ {[%clk 0:02:38]} 17. Rxc1 {[%clk 0:01:51]}  Qa5 {[%clk 0:02:37]} 18. Qd5 {[%clk 0:01:45]}  Qa6+ {[%clk 0:02:30]} 19. Qd3 {[%clk 0:01:41]}  Be6 {[%clk 0:02:18]} 20. Qxa6 {[%clk 0:01:40]}  bxa6 {[%clk 0:02:18]} 21. b3 {[%clk 0:01:38]}  a5 {[%clk 0:02:18]} 22. Rhd1 {[%clk 0:01:31]}  Rfc8 {[%clk 0:02:16]} 23. Na4 {[%clk 0:01:24]}  h6 {[%clk 0:02:15]} 24. h3 {[%clk 0:01:24]}  f5 {[%clk 0:02:14]} 25. Nc5 {[%clk 0:01:15]}  Bf7 {[%clk 0:02:07]} 26. exf5 {[%clk 0:01:13]}  gxf5 {[%clk 0:02:08]} 27. Nd7 {[%clk 0:01:08]}  e5 {[%clk 0:02:05]} 28. Rxc8+ {[%clk 0:00:52]}  Rxc8 {[%clk 0:02:02]} 29. Nfxe5 {[%clk 0:00:53]}  Be6 {[%clk 0:01:52]} 30. f4 {[%clk 0:00:52]}  Rc7 {[%clk 0:01:48]} 31. Rd6 {[%clk 0:00:43]}  Rc2+ {[%clk 0:01:07]} 32. Rd2 {[%clk 0:00:42]}  Rc3 {[%clk 0:00:57]} 33. Rd6 {[%clk 0:00:34]}  Bxd7 {[%clk 0:00:49]} 34. Nxd7 {[%clk 0:00:26]}  a4 {[%clk 0:00:49]} 35. bxa4 {[%clk 0:00:23]}  Ra3 {[%clk 0:00:48]} 36. Nf6+ {[%clk 0:00:19]}  Kf7 {[%clk 0:00:47]} 37. Nd5 {[%clk 0:00:15]}  Rxa2+ {[%clk 0:00:46]} 38. Kf3 {[%clk 0:00:13]}  Rxa4 {[%clk 0:00:47]} 39. Ne3 {[%clk 0:00:13]}  Ra3 {[%clk 0:00:44]} 40. Ke2 {[%clk 0:00:10]}  Ra5 {[%clk 0:00:42]} 41. Kf3 {[%clk 0:00:06]}  Bf8 {[%clk 0:00:42]} 42. Rc6 {[%clk 0:00:05]}  h5 {[%clk 0:00:42]} 43. g3 {[%clk 0:00:03]}  Be7 {[%clk 0:00:40]} 44. Rh6 {[%clk 0:00:01]}  Bf6 {[%clk 0:00:36]} 45. Rxh5 {[%clk 0:00:00]}  Kg6 {[%clk 0:00:36]} 0-1

[Event "January 2 Early 2024"]
[Site "https://www.chess.com"]
[Date "2024.01.02"]
[Round "1"]
[White "Gubajdullin, Alexei"]
[Black "Rodriguez Avila, Alvaro"]
[Result "0-1"]
[Board "231"]
[TimeControl "180+1"]
[WhiteFideId "4141202"]
[BlackFideId "24570249"]
[WhiteElo "2615"]
[BlackElo "2253"]
[WhiteTeam "RUS"]
[BlackTeam "ESP"]
[WhiteClock "0:00:02"]
[BlackClock "0:00:09"]

1. e4 {[%clk 0:03:00]}  c5 {[%clk 0:02:59]} 2. d4 {[%clk 0:03:00]}  cxd4 {[%clk 0:02:58]} 3. c3 {[%clk 0:03:00]}  d3 {[%clk 0:02:57]} 4. Bxd3 {[%clk 0:02:59]}  Nc6 {[%clk 0:02:58]} 5. c4 {[%clk 0:02:59]}  g6 {[%clk 0:02:58]} 6. Nc3 {[%clk 0:03:00]}  Bg7 {[%clk 0:02:59]} 7. Nf3 {[%clk 0:03:00]}  d6 {[%clk 0:02:59]} 8. h3 {[%clk 0:03:00]}  Nf6 {[%clk 0:02:58]} 9. O-O {[%clk 0:03:00]}  O-O {[%clk 0:02:58]} 10. Bg5 {[%clk 0:02:57]}  Ne5 {[%clk 0:02:56]} 11. Nxe5 {[%clk 0:02:55]}  dxe5 {[%clk 0:02:56]} 12. c5 {[%clk 0:02:54]}  Be6 {[%clk 0:02:52]} 13. Qe2 {[%clk 0:02:44]}  Qc7 {[%clk 0:02:52]} 14. b4 {[%clk 0:02:44]}  a6 {[%clk 0:02:44]} 15. Bc4 {[%clk 0:02:43]}  Bxc4 {[%clk 0:02:33]} 16. Qxc4 {[%clk 0:02:43]}  e6 {[%clk 0:02:32]} 17. Rfd1 {[%clk 0:02:32]}  Rfd8 {[%clk 0:02:32]} 18. a4 {[%clk 0:02:31]}  Rd4 {[%clk 0:02:29]} 19. Qb3 {[%clk 0:02:21]}  Rad8 {[%clk 0:02:21]} 20. Be3 {[%clk 0:02:20]}  Rxd1+ {[%clk 0:02:20]} 21. Rxd1 {[%clk 0:02:20]}  Nh5 {[%clk 0:01:55]} 22. Rxd8+ {[%clk 0:02:17]}  Qxd8 {[%clk 0:01:55]} 23. Qd1 {[%clk 0:02:17]}  Qc7 {[%clk 0:01:40]} 24. g3 {[%clk 0:02:11]}  Bf8 {[%clk 0:01:40]} 25. Qd3 {[%clk 0:02:04]}  Nf6 {[%clk 0:01:35]} 26. Qc4 {[%clk 0:02:03]}  Nd7 {[%clk 0:01:33]} 27. Ne2 {[%clk 0:01:56]}  a5 {[%clk 0:01:13]} 28. bxa5 {[%clk 0:01:45]}  Nxc5 {[%clk 0:01:09]} 29. Nc3 {[%clk 0:01:41]}  Qxa5 {[%clk 0:01:05]} 30. Kg2 {[%clk 0:01:37]}  Qa6 {[%clk 0:01:03]} 31. Qb5 {[%clk 0:01:16]}  Qxb5 {[%clk 0:00:46]} 32. axb5 {[%clk 0:01:15]}  Bd6 {[%clk 0:00:37]} 33. f3 {[%clk 0:01:14]}  Kf8 {[%clk 0:00:37]} 34. Kf1 {[%clk 0:01:10]}  Ke7 {[%clk 0:00:37]} 35. Ke2 {[%clk 0:01:10]}  Kd7 {[%clk 0:00:38]} 36. Nb1 {[%clk 0:01:07]}  Na4 {[%clk 0:00:35]} 37. Kd3 {[%clk 0:01:03]}  Bc5 {[%clk 0:00:32]} 38. Bg5 {[%clk 0:00:59]}  Bd4 {[%clk 0:00:28]} 39. Na3 {[%clk 0:00:53]}  Kd6 {[%clk 0:00:25]} 40. f4 {[%clk 0:00:39]}  exf4 {[%clk 0:00:25]} 41. Kxd4 {[%clk 0:00:37]}  e5+ {[%clk 0:00:23]} 42. Kd3 {[%clk 0:00:34]}  fxg3 {[%clk 0:00:22]} 43. Be3 {[%clk 0:00:31]}  f5 {[%clk 0:00:18]} 44. Nc4+ {[%clk 0:00:28]}  Ke6 {[%clk 0:00:18]} 45. Ke2 {[%clk 0:00:17]}  Nc3+ {[%clk 0:00:15]} 46. Kf3 {[%clk 0:00:18]}  f4 {[%clk 0:00:12]} 47. Ba7 {[%clk 0:00:17]}  Nxb5 {[%clk 0:00:12]} 48. Bb8 {[%clk 0:00:17]}  Nd4+ {[%clk 0:00:12]} 49. Kg2 {[%clk 0:00:17]}  Nc6 {[%clk 0:00:12]} 50. Bc7 {[%clk 0:00:16]}  b5 {[%clk 0:00:12]} 51. Nd2 {[%clk 0:00:13]}  g5 {[%clk 0:00:09]} 52. Nf3 {[%clk 0:00:10]}  h6 {[%clk 0:00:09]} 53. Nd2 {[%clk 0:00:08]}  b4 {[%clk 0:00:10]} 54. Kf3 {[%clk 0:00:05]}  Nd4+ {[%clk 0:00:08]} 55. Kg2 {[%clk 0:00:05]}  b3 {[%clk 0:00:09]} 56. Bb6 {[%clk 0:00:05]}  b2 {[%clk 0:00:09]} 57. Bc5 {[%clk 0:00:04]}  Nb3 {[%clk 0:00:08]} 58. Ba3 {[%clk 0:00:02]}  Nxd2 {[%clk 0:00:07]} 59. Bxb2 {[%clk 0:00:02]}  Nxe4 {[%clk 0:00:08]} 60. Kf3 {[%clk 0:00:02]}  Kf5 {[%clk 0:00:08]} 61. Bc1 {[%clk 0:00:01]}  h5 {[%clk 0:00:09]} 62. Kg2 {[%clk 0:00:01]}  g4 {[%clk 0:00:09]} 63. hxg4+ {[%clk 0:00:02]}  hxg4 {[%clk 0:00:10]} 64. Kg1 {[%clk 0:00:03]}  f3 {[%clk 0:00:10]} 65. Be3 {[%clk 0:00:03]}  f2+ {[%clk 0:00:10]} 66. Kg2 {[%clk 0:00:03]}  Nf6 {[%clk 0:00:09]} 67. Bd2 {[%clk 0:00:02]}  e4 {[%clk 0:00:07]} 68. Be3 {[%clk 0:00:03]}  Nd5 {[%clk 0:00:08]} 69. Bd4 {[%clk 0:00:02]}  e3 {[%clk 0:00:08]} 70. Kf1 {[%clk 0:00:03]}  Ke4 {[%clk 0:00:09]} 71. Bc5 {[%clk 0:00:02]}  Kf3 {[%clk 0:00:08]} 72. Bxe3 {[%clk 0:00:02]}  g2# {[%clk 0:00:09]} 0-1

[Event "January 2 Early 2024"]
[Site "https://www.chess.com"]
[Date "2024.01.02"]
[Round "1"]
[White "Cueto, Jonny"]
[Black "Avramidou, Anastasia"]
[Result "0-1"]
[Board "232"]
[TimeControl "180+1"]
[WhiteFideId "3300145"]
[BlackFideId "4239873"]
[WhiteElo "2249"]
[BlackElo "2614"]
[WhiteTeam "BOL"]
[BlackTeam "GRE"]
[WhiteClock "0:00:23"]
[BlackClock "0:00:55"]

1. d4 {[%clk 0:03:00]}  g6 {[%clk 0:03:00]} 2. Bf4 {[%clk 0:03:01]}  Bg7 {[%clk 0:03:00]} 3. Nc3 {[%clk 0:03:01]}  d6 {[%clk 0:03:00]} 4. e4 {[%clk 0:03:02]}  a6 {[%clk 0:03:00]} 5. h4 {[%clk 0:03:00]}  h5 {[%clk 0:03:00]} 6. Nf3 {[%clk 0:02:59]}  b5 {[%clk 0:03:00]} 7. Qd2 {[%clk 0:02:57]}  Bb7 {[%clk 0:03:00]} 8. Ng5 {[%clk 0:02:56]}  Nd7 {[%clk 0:02:56]} 9. f3 {[%clk 0:02:55]}  Nb6 {[%clk 0:02:55]} 10. O-O-O {[%clk 0:02:50]}  Nf6 {[%clk 0:02:55]} 11. e5 {[%clk 0:02:48]}  Nfd5 {[%clk 0:02:55]} 12. Bd3 {[%clk 0:02:36]}  dxe5 {[%clk 0:02:48]} 13. dxe5 {[%clk 0:02:33]}  Nxc3 {[%clk 0:02:09]} 14. Qxc3 {[%clk 0:02:30]}  Nd5 {[%clk 0:02:09]} 15. Qd2 {[%clk 0:02:30]}  e6 {[%clk 0:02:09]} 16. Rhe1 {[%clk 0:02:10]}  Qe7 {[%clk 0:02:04]} 17. Kb1 {[%clk 0:02:09]}  O-O-O {[%clk 0:02:03]} 18. Bg3 {[%clk 0:01:58]}  Kb8 {[%clk 0:02:00]} 19. Qa5 {[%clk 0:01:57]}  Rd7 {[%clk 0:01:49]} 20. Bf2 {[%clk 0:01:55]}  Qb4 {[%clk 0:01:44]} 21. Qxb4 {[%clk 0:01:45]}  Nxb4 {[%clk 0:01:45]} 22. Be4 {[%clk 0:01:44]}  Nd5 {[%clk 0:01:25]} 23. Bg3 {[%clk 0:01:35]}  Rhd8 {[%clk 0:01:23]} 24. Bd3 {[%clk 0:01:01]}  Bh6 {[%clk 0:01:22]} 25. a3 {[%clk 0:00:38]}  Bxg5 {[%clk 0:01:15]} 26. hxg5 {[%clk 0:00:38]}  c5 {[%clk 0:01:14]} 27. Kc1 {[%clk 0:00:38]}  Ne7 {[%clk 0:01:10]} 28. Be4 {[%clk 0:00:34]}  Rxd1+ {[%clk 0:01:09]} 29. Rxd1 {[%clk 0:00:35]}  Rxd1+ {[%clk 0:01:10]} 30. Kxd1 {[%clk 0:00:35]}  Bxe4 {[%clk 0:01:11]} 31. fxe4 {[%clk 0:00:36]}  Nc6 {[%clk 0:01:09]} 32. c3 {[%clk 0:00:35]}  Kc7 {[%clk 0:01:08]} 33. Ke2 {[%clk 0:00:35]}  Ne7 {[%clk 0:01:01]} 34. Bf2 {[%clk 0:00:31]}  Kc6 {[%clk 0:01:02]} 35. Kf3 {[%clk 0:00:30]}  Nc8 {[%clk 0:01:02]} 36. g4 {[%clk 0:00:28]}  hxg4+ {[%clk 0:01:00]} 37. Kxg4 {[%clk 0:00:29]}  Nb6 {[%clk 0:01:01]} 38. b3 {[%clk 0:00:25]}  c4 {[%clk 0:00:56]} 39. Bxb6 {[%clk 0:00:22]}  cxb3 {[%clk 0:00:54]} 40. Bd4 {[%clk 0:00:23]}  b2 {[%clk 0:00:55]} 41. c4 {[%clk 0:00:23]}  b1=Q {[%clk 0:00:55]} 42. cxb5+ {[%clk 0:00:23]}  Kxb5 {[%clk 0:00:55]} 43. Be3 {[%clk 0:00:23]}  Qxe4+ {[%clk 0:00:55]} 0-1

[Event "January 2 Early 2024"]
[Site "https://www.chess.com"]
[Date "2024.01.02"]
[Round "1"]
[White "Slavin, Alexey"]
[Black "Toman, Ondrej"]
[Result "1-0"]
[Board "236"]
[TimeControl "180+1"]
[WhiteFideId "24104388"]
[BlackFideId "344516"]
[WhiteElo "2236"]
[BlackElo "2611"]
[WhiteTeam "RUS"]
[BlackTeam "CZE"]
[WhiteClock "0:00:41"]
[BlackClock "0:00:05"]

1. e4 {[%clk 0:02:59]}  c6 {[%clk 0:03:00]} 2. d4 {[%clk 0:02:59]}  d5 {[%clk 0:03:00]} 3. e5 {[%clk 0:02:59]}  Bf5 {[%clk 0:02:57]} 4. Nf3 {[%clk 0:02:59]}  e6 {[%clk 0:02:54]} 5. Be2 {[%clk 0:02:59]}  c5 {[%clk 0:02:54]} 6. Be3 {[%clk 0:02:59]}  cxd4 {[%clk 0:02:50]} 7. Nxd4 {[%clk 0:02:59]}  Ne7 {[%clk 0:02:49]} 8. O-O {[%clk 0:02:50]}  Nbc6 {[%clk 0:02:47]} 9. Nxf5 {[%clk 0:02:50]}  exf5 {[%clk 0:02:46]} 10. f4 {[%clk 0:02:46]}  Qd7 {[%clk 0:02:42]} 11. c3 {[%clk 0:02:46]}  g6 {[%clk 0:02:25]} 12. Nd2 {[%clk 0:02:45]}  Bg7 {[%clk 0:02:23]} 13. Nb3 {[%clk 0:02:44]}  b6 {[%clk 0:02:13]} 14. Qd2 {[%clk 0:02:20]}  O-O {[%clk 0:02:11]} 15. Rad1 {[%clk 0:02:20]}  Rad8 {[%clk 0:02:07]} 16. Bb5 {[%clk 0:02:16]}  Qb7 {[%clk 0:01:59]} 17. Qe2 {[%clk 0:02:16]}  Nb8 {[%clk 0:01:36]} 18. Rd2 {[%clk 0:02:01]}  a6 {[%clk 0:01:34]} 19. Bd3 {[%clk 0:02:00]}  Rd7 {[%clk 0:01:11]} 20. Qf2 {[%clk 0:02:00]}  Nc8 {[%clk 0:01:05]} 21. Rfd1 {[%clk 0:01:59]}  Rfd8 {[%clk 0:01:05]} 22. Bf1 {[%clk 0:01:58]}  Bf8 {[%clk 0:00:55]} 23. Be2 {[%clk 0:01:57]}  h5 {[%clk 0:00:50]} 24. Bf3 {[%clk 0:01:57]}  b5 {[%clk 0:00:38]} 25. Bc5 {[%clk 0:01:50]}  Qa8 {[%clk 0:00:17]} 26. g3 {[%clk 0:01:39]}  a5 {[%clk 0:00:13]} 27. Qg2 {[%clk 0:01:38]}  a4 {[%clk 0:00:12]} 28. Bxf8 {[%clk 0:01:37]}  axb3 {[%clk 0:00:11]} 29. Ba3 {[%clk 0:01:34]}  bxa2 {[%clk 0:00:11]} 30. Ra1 {[%clk 0:01:32]}  Qa7+ {[%clk 0:00:11]} 31. Qf2 {[%clk 0:01:31]}  Qxf2+ {[%clk 0:00:10]} 32. Kxf2 {[%clk 0:01:31]}  Ne7 {[%clk 0:00:10]} 33. Rxa2 {[%clk 0:01:31]}  Nbc6 {[%clk 0:00:10]} 34. Ra1 {[%clk 0:01:30]}  d4 {[%clk 0:00:10]} 35. Rad1 {[%clk 0:01:19]}  b4 {[%clk 0:00:10]} 36. cxb4 {[%clk 0:01:16]}  Nd5 {[%clk 0:00:07]} 37. b5 {[%clk 0:01:14]}  Na5 {[%clk 0:00:06]} 38. Rxd4 {[%clk 0:01:11]}  Nb6 {[%clk 0:00:07]} 39. Rxd7 {[%clk 0:01:09]}  Rxd7 {[%clk 0:00:08]} 40. Rxd7 {[%clk 0:01:09]}  Nxd7 {[%clk 0:00:08]} 41. Bc6 {[%clk 0:01:10]}  Nb6 {[%clk 0:00:08]} 42. Bc5 {[%clk 0:01:08]}  Na4 {[%clk 0:00:08]} 43. Bb4 {[%clk 0:01:07]}  Nc4 {[%clk 0:00:07]} 44. b3 {[%clk 0:01:05]}  Nab2 {[%clk 0:00:07]} 45. bxc4 {[%clk 0:01:05]}  Nd3+ {[%clk 0:00:08]} 46. Ke3 {[%clk 0:01:05]}  Nxb4 {[%clk 0:00:09]} 47. Kd4 {[%clk 0:01:05]}  Kf8 {[%clk 0:00:09]} 48. b6 {[%clk 0:01:04]}  Ke7 {[%clk 0:00:09]} 49. Kc5 {[%clk 0:01:01]}  Na6+ {[%clk 0:00:08]} 50. Kb5 {[%clk 0:00:59]}  Nb8 {[%clk 0:00:08]} 51. c5 {[%clk 0:01:00]}  Kd8 {[%clk 0:00:08]} 52. Bd5 {[%clk 0:00:58]}  Ke7 {[%clk 0:00:08]} 53. c6 {[%clk 0:00:58]}  f6 {[%clk 0:00:08]} 54. c7 {[%clk 0:00:54]}  Nd7 {[%clk 0:00:08]} 55. e6 {[%clk 0:00:46]}  Nf8 {[%clk 0:00:05]} 56. c8=Q {[%clk 0:00:45]}  g5 {[%clk 0:00:05]} 57. Qc7+ {[%clk 0:00:42]}  Ke8 {[%clk 0:00:05]} 58. Qf7+ {[%clk 0:00:41]}  Kd8 {[%clk 0:00:05]} 59. Qxf8# {[%clk 0:00:41]} 1-0

[Event "January 2 Early 2024"]
[Site "https://www.chess.com"]
[Date "2024.01.02"]
[Round "1"]
[White "Palczert, Matyas"]
[Black "Skurikhin, Dmitrij"]
[Result "0-1"]
[Board "237"]
[TimeControl "180+1"]
[WhiteFideId "784958"]
[BlackFideId "4161297"]
[WhiteElo "2611"]
[BlackElo "2234"]
[WhiteTeam "HUN"]
[BlackTeam "RUS"]
[WhiteClock "0:00:00"]
[BlackClock "0:00:31"]

1. d4 {[%clk 0:03:00]}  d5 {[%clk 0:02:59]} 2. e4 {[%clk 0:02:58]}  e6 {[%clk 0:02:57]} 3. Nc3 {[%clk 0:02:53]}  Nf6 {[%clk 0:02:56]} 4. f3 {[%clk 0:02:52]}  c5 {[%clk 0:02:55]} 5. exd5 {[%clk 0:02:51]}  exd5 {[%clk 0:02:53]} 6. Bb5+ {[%clk 0:02:50]}  Nc6 {[%clk 0:02:53]} 7. Nge2 {[%clk 0:02:49]}  Be6 {[%clk 0:02:52]} 8. dxc5 {[%clk 0:02:39]}  Bxc5 {[%clk 0:02:51]} 9. Bg5 {[%clk 0:02:39]}  Qb6 {[%clk 0:02:47]} 10. Bxf6 {[%clk 0:02:29]}  gxf6 {[%clk 0:02:48]} 11. Qd3 {[%clk 0:02:11]}  Bf2+ {[%clk 0:02:36]} 12. Kf1 {[%clk 0:02:08]}  Bc5 {[%clk 0:02:33]} 13. Na4 {[%clk 0:02:05]}  Bf5 {[%clk 0:02:25]} 14. Nxb6 {[%clk 0:01:13]}  Bxd3 {[%clk 0:02:24]} 15. Nxa8 {[%clk 0:01:14]}  Bxe2+ {[%clk 0:02:22]} 16. Bxe2 {[%clk 0:01:08]}  Kd7 {[%clk 0:02:22]} 17. Rd1 {[%clk 0:01:08]}  d4 {[%clk 0:02:19]} 18. Bb5 {[%clk 0:01:03]}  Rxa8 {[%clk 0:02:17]} 19. c3 {[%clk 0:01:00]}  Kc7 {[%clk 0:02:16]} 20. Bxc6 {[%clk 0:01:00]}  bxc6 {[%clk 0:02:13]} 21. cxd4 {[%clk 0:00:54]}  Bb6 {[%clk 0:02:14]} 22. Ke2 {[%clk 0:00:53]}  Rd8 {[%clk 0:02:12]} 23. Ke3 {[%clk 0:00:50]}  Kd6 {[%clk 0:02:05]} 24. Ke4 {[%clk 0:00:40]}  Ke6 {[%clk 0:01:52]} 25. Rhe1 {[%clk 0:00:38]}  f5+ {[%clk 0:01:48]} 26. Kd3+ {[%clk 0:00:30]}  Kf6 {[%clk 0:01:48]} 27. Kc4 {[%clk 0:00:30]}  Rd5 {[%clk 0:01:42]} 28. Re5 {[%clk 0:00:22]}  Rd7 {[%clk 0:01:36]} 29. a4 {[%clk 0:00:20]}  Rb7 {[%clk 0:01:15]} 30. a5 {[%clk 0:00:19]}  Bxd4 {[%clk 0:01:15]} 31. Re2 {[%clk 0:00:14]}  c5 {[%clk 0:01:12]} 32. Kd5 {[%clk 0:00:10]}  Rb5 {[%clk 0:01:05]} 33. g4 {[%clk 0:00:07]}  Rxa5 {[%clk 0:01:02]} 34. h4 {[%clk 0:00:07]}  h6 {[%clk 0:01:02]} 35. Rg2 {[%clk 0:00:05]}  Be3 {[%clk 0:00:59]} 36. Re1 {[%clk 0:00:03]}  f4 {[%clk 0:00:58]} 37. g5+ {[%clk 0:00:03]}  hxg5 {[%clk 0:00:58]} 38. hxg5+ {[%clk 0:00:03]}  Kg6 {[%clk 0:00:58]} 39. Rh1 {[%clk 0:00:04]}  Bd4 {[%clk 0:00:49]} 40. Rh6+ {[%clk 0:00:03]}  Kf5 {[%clk 0:00:49]} 41. Rc6 {[%clk 0:00:04]}  Rb5 {[%clk 0:00:45]} 42. g6 {[%clk 0:00:04]}  fxg6 {[%clk 0:00:41]} 43. Rcxg6 {[%clk 0:00:05]}  Bf6 {[%clk 0:00:41]} 44. Rg8 {[%clk 0:00:03]}  Rb3 {[%clk 0:00:32]} 45. Rh2 {[%clk 0:00:01]}  Rd3+ {[%clk 0:00:30]} 46. Kxc5 {[%clk 0:00:01]}  Rxf3 {[%clk 0:00:31]} 47. Rh5+ {[%clk 0:00:00]}  Ke4 {[%clk 0:00:31]} 0-1

[Event "January 2 Early 2024"]
[Site "https://www.chess.com"]
[Date "2024.01.02"]
[Round "1"]
[White "Zainullina, Nataliya"]
[Black "Chitre Arush"]
[Result "0-1"]
[Board "242"]
[TimeControl "180+1"]
[WhiteFideId "4145488"]
[BlackFideId "25959026"]
[WhiteElo "2212"]
[BlackElo "2607"]
[WhiteTeam "RUS"]
[BlackTeam "IND"]
[WhiteClock "0:01:00"]
[BlackClock "0:02:13"]

1. e4 {[%clk 0:03:00]}  c6 {[%clk 0:02:59]} 2. Nc3 {[%clk 0:02:59]}  d5 {[%clk 0:02:59]} 3. Nf3 {[%clk 0:02:59]}  Bg4 {[%clk 0:02:57]} 4. exd5 {[%clk 0:02:58]}  cxd5 {[%clk 0:02:57]} 5. h3 {[%clk 0:02:56]}  Bxf3 {[%clk 0:02:56]} 6. Qxf3 {[%clk 0:02:56]}  Nf6 {[%clk 0:02:57]} 7. d4 {[%clk 0:02:55]}  Nc6 {[%clk 0:02:57]} 8. Be3 {[%clk 0:02:52]}  e6 {[%clk 0:02:56]} 9. Qg3 {[%clk 0:02:50]}  Qa5 {[%clk 0:02:41]} 10. Bb5 {[%clk 0:02:34]}  Ne4 {[%clk 0:02:38]} 11. Bxc6+ {[%clk 0:02:24]}  bxc6 {[%clk 0:02:39]} 12. Qf3 {[%clk 0:02:12]}  Ba3 {[%clk 0:02:34]} 13. O-O {[%clk 0:01:41]}  Bxb2 {[%clk 0:02:14]} 14. Nxe4 {[%clk 0:01:32]}  dxe4 {[%clk 0:02:15]} 15. Qxe4 {[%clk 0:01:31]}  Bxa1 {[%clk 0:02:16]} 16. Qxc6+ {[%clk 0:01:30]}  Ke7 {[%clk 0:02:16]} 17. Bg5+ {[%clk 0:01:21]}  Qxg5 {[%clk 0:02:15]} 18. Rxa1 {[%clk 0:01:06]}  Rhc8 {[%clk 0:02:13]} 19. Qb7+ {[%clk 0:01:00]}  Kf8 {[%clk 0:02:13]} 0-1

[Event "January 2 Early 2024"]
[Site "https://www.chess.com"]
[Date "2024.01.02"]
[Round "1"]
[White "Niedbala, Bartlomiej"]
[Black "Harper, Ryan"]
[Result "1-0"]
[Board "243"]
[TimeControl "180+1"]
[WhiteFideId "21834008"]
[BlackFideId "7700156"]
[WhiteElo "2606"]
[BlackElo "2212"]
[WhiteTeam "POL"]
[BlackTeam "TTO"]
[WhiteClock "0:00:18"]
[BlackClock "0:00:00"]

1. e4 {[%clk 0:03:00]}  c5 {[%clk 0:02:58]} 2. Nf3 {[%clk 0:03:00]}  d6 {[%clk 0:02:56]} 3. d4 {[%clk 0:03:00]}  cxd4 {[%clk 0:02:57]} 4. Nxd4 {[%clk 0:03:01]}  Nf6 {[%clk 0:02:57]} 5. Nc3 {[%clk 0:03:02]}  g6 {[%clk 0:02:57]} 6. Be3 {[%clk 0:03:01]}  Bg7 {[%clk 0:02:57]} 7. f3 {[%clk 0:03:02]}  O-O {[%clk 0:02:57]} 8. Qd2 {[%clk 0:03:03]}  Nc6 {[%clk 0:02:58]} 9. O-O-O {[%clk 0:03:00]}  Bd7 {[%clk 0:02:55]} 10. g4 {[%clk 0:02:59]}  Rc8 {[%clk 0:02:49]} 11. h4 {[%clk 0:02:52]}  Ne5 {[%clk 0:02:41]} 12. h5 {[%clk 0:02:51]}  Qa5 {[%clk 0:02:35]} 13. Nb3 {[%clk 0:02:44]}  Nxf3 {[%clk 0:02:13]} 14. Nxa5 {[%clk 0:02:16]}  Nxd2 {[%clk 0:02:13]} 15. Rxd2 {[%clk 0:02:16]}  Nxg4 {[%clk 0:02:06]} 16. Bd4 {[%clk 0:02:02]}  Ne5 {[%clk 0:01:31]} 17. h6 {[%clk 0:01:56]}  Bh8 {[%clk 0:01:28]} 18. Bxa7 {[%clk 0:01:48]}  Ra8 {[%clk 0:01:07]} 19. Bb6 {[%clk 0:01:45]}  Nf3 {[%clk 0:01:06]} 20. Rf2 {[%clk 0:01:38]}  Ne5 {[%clk 0:00:58]} 21. Nd5 {[%clk 0:01:34]}  Rae8 {[%clk 0:00:46]} 22. Be2 {[%clk 0:01:00]}  Bc6 {[%clk 0:00:38]} 23. Rhf1 {[%clk 0:00:43]}  Bxd5 {[%clk 0:00:28]} 24. exd5 {[%clk 0:00:44]}  f5 {[%clk 0:00:27]} 25. Kb1 {[%clk 0:00:37]}  Ra8 {[%clk 0:00:24]} 26. Nb3 {[%clk 0:00:35]}  Ra4 {[%clk 0:00:22]} 27. a3 {[%clk 0:00:30]}  Rh4 {[%clk 0:00:18]} 28. Be3 {[%clk 0:00:27]}  Bf6 {[%clk 0:00:18]} 29. Bc1 {[%clk 0:00:27]}  Kf7 {[%clk 0:00:12]} 30. c3 {[%clk 0:00:20]}  Rg8 {[%clk 0:00:11]} 31. Nd4 {[%clk 0:00:20]}  Ng4 {[%clk 0:00:07]} 32. Bxg4 {[%clk 0:00:21]}  Rxg4 {[%clk 0:00:07]} 33. Ne6 {[%clk 0:00:20]}  Bh4 {[%clk 0:00:06]} 34. Rf3 {[%clk 0:00:18]}  Kf6 {[%clk 0:00:00]} 35. Kc2 {[%clk 0:00:18]} 1-0

[Event "January 2 Early 2024"]
[Site "https://www.chess.com"]
[Date "2024.01.02"]
[Round "1"]
[White "Domingo Nunez, Ruben"]
[Black "Gutierrez Carmona, Juan Alejandro"]
[Result "1-0"]
[Board "245"]
[TimeControl "180+1"]
[WhiteFideId "22245570"]
[BlackFideId "5106770"]
[WhiteElo "2604"]
[BlackElo "2202"]
[WhiteTeam "ESP"]
[BlackTeam "MEX"]
[WhiteClock "0:01:39"]
[BlackClock "0:00:00"]

1. f4 {[%clk 0:02:56]}  Nf6 {[%clk 0:02:53]} 2. b3 {[%clk 0:02:56]}  g6 {[%clk 0:02:46]} 3. Bb2 {[%clk 0:02:56]}  Bg7 {[%clk 0:02:47]} 4. e4 {[%clk 0:02:55]}  O-O {[%clk 0:02:29]} 5. e5 {[%clk 0:02:54]}  Ne8 {[%clk 0:02:26]} 6. Nf3 {[%clk 0:02:54]}  d6 {[%clk 0:02:27]} 7. Be2 {[%clk 0:02:48]}  c5 {[%clk 0:02:25]} 8. O-O {[%clk 0:02:48]}  Nc6 {[%clk 0:02:25]} 9. Qc1 {[%clk 0:02:37]}  Bg4 {[%clk 0:02:05]} 10. Na3 {[%clk 0:02:28]}  dxe5 {[%clk 0:01:55]} 11. fxe5 {[%clk 0:02:25]}  Nxe5 {[%clk 0:01:40]} 12. Nxe5 {[%clk 0:02:17]}  Bxe2 {[%clk 0:01:38]} 13. Rf2 {[%clk 0:02:18]}  Ba6 {[%clk 0:01:30]} 14. Qe1 {[%clk 0:02:18]}  f6 {[%clk 0:01:18]} 15. Nd3 {[%clk 0:02:12]}  Bxd3 {[%clk 0:01:10]} 16. Qe6+ {[%clk 0:02:12]}  Kh8 {[%clk 0:01:09]} 17. cxd3 {[%clk 0:02:13]}  Nc7 {[%clk 0:01:04]} 18. Qc4 {[%clk 0:02:13]}  b6 {[%clk 0:01:01]} 19. h4 {[%clk 0:01:51]}  e5 {[%clk 0:00:22]} 20. h5 {[%clk 0:01:50]}  Qd5 {[%clk 0:00:16]} 21. Qg4 {[%clk 0:01:50]}  Qxd3 {[%clk 0:00:11]} 22. Rf3 {[%clk 0:01:47]}  f5 {[%clk 0:00:03]} 23. Rxd3 {[%clk 0:01:39]}  fxg4 {[%clk 0:00:03]} 24. h6 {[%clk 0:01:40]}  Bxh6 {[%clk 0:00:02]} 25. Re1 {[%clk 0:01:39]}  Bg7 {[%clk 0:00:00]} 26. Rxe5 {[%clk 0:01:39]} 1-0